[Event "Late-Titled-Tuesday-Blitz-January-23-2024"]
[Site "Chess.com"]
[Date "2024.01.23"]
[Round "6"]
[White "Siemba"]
[Black "rychessmaster1"]
[Result "1/2-1/2"]
[WhiteElo "2574"]
[BlackElo "2732"]
[TimeControl "180+1"]
[EndTime "15:06:07 PST"]
[Termination "Game drawn - insufficient material"]

1. e4 {[%clk 0:03:00.9]} 1... c6 {[%clk 0:02:59.8]} 2. d4 {[%clk 0:03:00.7]}
2... d5 {[%clk 0:03:00.5]} 3. Nc3 {[%clk 0:03:01]} 3... dxe4 {[%clk 0:03:01]} 4.
Nxe4 {[%clk 0:03:01.9]} 4... Nf6 {[%clk 0:03:01.5]} 5. Nxf6+ {[%clk 0:03:02.2]}
5... exf6 {[%clk 0:03:02.4]} 6. c3 {[%clk 0:03:02.8]} 6... Bd6 {[%clk 0:03:03]}
7. Bd3 {[%clk 0:03:03.5]} 7... O-O {[%clk 0:03:03.7]} 8. Qc2 {[%clk 0:03:04.2]}
8... Re8+ {[%clk 0:03:04.5]} 9. Ne2 {[%clk 0:03:04.9]} 9... h5 {[%clk
0:03:05.2]} 10. O-O {[%clk 0:03:05.2]} 10... h4 {[%clk 0:03:05.6]} 11. h3 {[%clk
0:03:05.1]} 11... Nd7 {[%clk 0:03:05.7]} 12. Bd2 {[%clk 0:03:03.7]} 12... Nf8
{[%clk 0:03:05.2]} 13. Rae1 {[%clk 0:03:03]} 13... Bc7 {[%clk 0:03:02.4]} 14.
Qc1 {[%clk 0:02:54.9]} 14... b6 {[%clk 0:02:40.8]} 15. Bf4 {[%clk 0:02:51.1]}
15... Bb7 {[%clk 0:02:39.7]} 16. Bxc7 {[%clk 0:02:48.3]} 16... Qxc7 {[%clk
0:02:40.6]} 17. Qf4 {[%clk 0:02:48.4]} 17... Qxf4 {[%clk 0:02:37.3]} 18. Nxf4
{[%clk 0:02:49.3]} 18... g6 {[%clk 0:02:23.1]} 19. Bc4 {[%clk 0:02:45.2]} 19...
Kg7 {[%clk 0:02:21]} 20. f3 {[%clk 0:02:39.4]} 20... Nd7 {[%clk 0:02:08.9]} 21.
Kf2 {[%clk 0:02:35]} 21... f5 {[%clk 0:02:04.1]} 22. g4 {[%clk 0:02:24.6]} 22...
hxg3+ {[%clk 0:02:00.3]} 23. Kxg3 {[%clk 0:02:25.5]} 23... Nf6 {[%clk
0:01:51.9]} 24. h4 {[%clk 0:02:23.6]} 24... Rac8 {[%clk 0:01:30.3]} 25. Re5
{[%clk 0:02:15.9]} 25... Nd7 {[%clk 0:01:18.3]} 26. Ree1 {[%clk 0:02:07.5]}
26... Nf6 {[%clk 0:01:06.5]} 27. Nd3 {[%clk 0:02:04.5]} 27... Nh5+ {[%clk
0:00:41.5]} 28. Kf2 {[%clk 0:02:04.2]} 28... f6 {[%clk 0:00:41.7]} 29. a4 {[%clk
0:01:46.6]} 29... Kf8 {[%clk 0:00:33.6]} 30. Rg1 {[%clk 0:01:38]} 30... Rxe1
{[%clk 0:00:33.7]} 31. Nxe1 {[%clk 0:01:24.3]} 31... Kg7 {[%clk 0:00:33.4]} 32.
Ng2 {[%clk 0:01:22.2]} 32... c5 {[%clk 0:00:27.8]} 33. Ne3 {[%clk 0:01:14.4]}
33... Kh6 {[%clk 0:00:17.9]} 34. Be6 {[%clk 0:01:10.7]} 34... Re8 {[%clk
0:00:13.4]} 35. Bf7 {[%clk 0:01:09.5]} 35... Re7 {[%clk 0:00:09.9]} 36. Bxg6
{[%clk 0:01:01.7]} 36... Ng7 {[%clk 0:00:08.9]} 37. Nxf5+ {[%clk 0:00:57.5]}
37... Nxf5 {[%clk 0:00:09.5]} 38. Bxf5 {[%clk 0:00:58.4]} 38... cxd4 {[%clk
0:00:10.1]} 39. cxd4 {[%clk 0:00:58.6]} 39... Rc7 {[%clk 0:00:10.8]} 40. Rg6+
{[%clk 0:00:58.4]} 40... Kh5 {[%clk 0:00:11.4]} 41. Rxf6 {[%clk 0:00:58.4]}
41... Kxh4 {[%clk 0:00:11.6]} 42. Ke3 {[%clk 0:00:56.3]} 42... Kg5 {[%clk
0:00:10.5]} 43. Rf8 {[%clk 0:00:56.9]} 43... Re7+ {[%clk 0:00:10.2]} 44. Be4
{[%clk 0:00:56]} 44... Ba6 {[%clk 0:00:10.1]} 45. b4 {[%clk 0:00:52.8]} 45...
Bc4 {[%clk 0:00:09.5]} 46. a5 {[%clk 0:00:52.3]} 46... bxa5 {[%clk 0:00:09]} 47.
bxa5 {[%clk 0:00:53.2]} 47... Bb3 {[%clk 0:00:07.4]} 48. Rb8 {[%clk 0:00:51.5]}
48... Bc4 {[%clk 0:00:06.7]} 49. Rb4 {[%clk 0:00:47.9]} 49... Bf1 {[%clk
0:00:06.5]} 50. d5 {[%clk 0:00:44.8]} 50... Kf6 {[%clk 0:00:05.4]} 51. Kd4
{[%clk 0:00:45.2]} 51... Bh3 {[%clk 0:00:03.7]} 52. d6 {[%clk 0:00:32.6]} 52...
Re5 {[%clk 0:00:03.6]} 53. Rb7 {[%clk 0:00:10.7]} 53... Rxa5 {[%clk 0:00:03.8]}
54. Bd5 {[%clk 0:00:11.3]} 54... Ra4+ {[%clk 0:00:02.7]} 55. Kc5 {[%clk
0:00:10.8]} 55... Ra5+ {[%clk 0:00:02]} 56. Rb5 {[%clk 0:00:07.3]} 56... Rxb5+
{[%clk 0:00:02]} 57. Kxb5 {[%clk 0:00:08.2]} 57... Ke5 {[%clk 0:00:02.1]} 58.
Kc6 {[%clk 0:00:05.2]} 58... a5 {[%clk 0:00:02.6]} 59. Bb3 {[%clk 0:00:04.5]}
59... Kf4 {[%clk 0:00:03.2]} 60. Bd5 {[%clk 0:00:03.5]} 60... a4 {[%clk
0:00:03.3]} 61. d7 {[%clk 0:00:02.5]} 61... Bxd7+ {[%clk 0:00:03.5]} 62. Kxd7
{[%clk 0:00:03.4]} 62... a3 {[%clk 0:00:04.2]} 63. Ba2 {[%clk 0:00:03.5]} 63...
Kxf3 {[%clk 0:00:04.7]} 64. Kc6 {[%clk 0:00:04.4]} 64... Ke3 {[%clk 0:00:05.1]}
65. Kb5 {[%clk 0:00:05.2]} 65... Kd3 {[%clk 0:00:05.8]} 66. Ka4 {[%clk
0:00:05.8]} 66... Kd4 {[%clk 0:00:06.6]} 67. Kxa3 {[%clk 0:00:06.4]} 1/2-1/2

[Event "Late-Titled-Tuesday-Blitz-January-23-2024"]
[Site "Chess.com"]
[Date "2024.01.23"]
[Round "6"]
[White "DeArron_Fox"]
[Black "Mazetovic"]
[Result "0-1"]
[WhiteElo "2433"]
[BlackElo "2586"]
[TimeControl "180+1"]
[EndTime "15:06:22 PST"]
[Termination "Mazetovic won by resignation"]

1. d4 {[%clk 0:03:00.9]} 1... Nf6 {[%clk 0:02:59.4]} 2. c4 {[%clk 0:03:01.4]}
2... g6 {[%clk 0:02:59.8]} 3. Nc3 {[%clk 0:03:01.9]} 3... Bg7 {[%clk 0:03:00.7]}
4. e4 {[%clk 0:03:02.2]} 4... O-O {[%clk 0:03:00.9]} 5. f3 {[%clk 0:03:02.9]}
5... d6 {[%clk 0:03:01.1]} 6. Be3 {[%clk 0:03:03.3]} 6... c5 {[%clk 0:02:57]} 7.
Nge2 {[%clk 0:03:03.7]} 7... Nc6 {[%clk 0:02:55.4]} 8. d5 {[%clk 0:03:04.1]}
8... Ne5 {[%clk 0:02:55.6]} 9. Ng3 {[%clk 0:03:04.7]} 9... e6 {[%clk 0:02:55]}
10. Be2 {[%clk 0:03:01.4]} 10... exd5 {[%clk 0:02:55.2]} 11. cxd5 {[%clk
0:03:01]} 11... h5 {[%clk 0:02:55.5]} 12. O-O {[%clk 0:03:00.1]} 12... h4 {[%clk
0:02:55.3]} 13. Nh1 {[%clk 0:03:00.3]} 13... a6 {[%clk 0:02:53.1]} 14. a4 {[%clk
0:02:59.8]} 14... Re8 {[%clk 0:02:52.4]} 15. Nf2 {[%clk 0:02:58]} 15... Rb8
{[%clk 0:02:39.3]} 16. Bg5 {[%clk 0:02:47.5]} 16... h3 {[%clk 0:02:36.5]} 17. g4
{[%clk 0:02:44.9]} 17... Qb6 {[%clk 0:02:34.1]} 18. Qd2 {[%clk 0:02:37.7]} 18...
Nh7 {[%clk 0:02:14.6]} 19. Be3 {[%clk 0:02:30.3]} 19... Qb4 {[%clk 0:02:07.7]}
20. a5 {[%clk 0:01:24]} 20... Nc4 {[%clk 0:02:05.2]} 21. Bxc4 {[%clk 0:01:23.4]}
21... Qxc4 {[%clk 0:02:05.5]} 22. Ra4 {[%clk 0:01:23.9]} 22... Bxc3 {[%clk
0:02:04.3]} 23. Rxc4 {[%clk 0:01:23.6]} 23... Bxd2 {[%clk 0:02:03.7]} 24. Bxd2
{[%clk 0:01:24.5]} 24... Bd7 {[%clk 0:01:58.2]} 25. Rcc1 {[%clk 0:01:02.8]}
25... b6 {[%clk 0:01:47.1]} 26. b4 {[%clk 0:00:50.6]} 26... cxb4 {[%clk
0:01:40.4]} 27. Bxb4 {[%clk 0:00:48.9]} 27... Ng5 {[%clk 0:01:38.3]} 28. Nd1
{[%clk 0:00:17.6]} 28... bxa5 {[%clk 0:01:18.6]} 29. Bxd6 {[%clk 0:00:17.3]}
29... Rb3 {[%clk 0:01:16.4]} 30. Rc3 {[%clk 0:00:17.2]} 30... Rxc3 {[%clk
0:01:09.7]} 31. Nxc3 {[%clk 0:00:18.1]} 31... Rc8 {[%clk 0:01:05.6]} 32. Bf4
{[%clk 0:00:05.7]} 32... Rxc3 {[%clk 0:00:59.6]} 33. Bxg5 {[%clk 0:00:05.8]}
33... a4 {[%clk 0:00:52]} 34. Kf2 {[%clk 0:00:04.9]} 34... a3 {[%clk 0:00:49.3]}
35. Rc1 {[%clk 0:00:04.3]} 35... a2 {[%clk 0:00:34.6]} 36. Ra1 {[%clk
0:00:03.7]} 36... Rc2+ {[%clk 0:00:32.1]} 37. Kg3 {[%clk 0:00:04]} 37... f5
{[%clk 0:00:25.6]} 38. gxf5 {[%clk 0:00:02.5]} 38... gxf5 {[%clk 0:00:25.8]} 39.
e5 {[%clk 0:00:03.4]} 39... f4+ {[%clk 0:00:24.7]} 40. Kxf4 {[%clk 0:00:02.8]}
40... Rxh2 {[%clk 0:00:24.5]} 41. e6 {[%clk 0:00:03.4]} 41... Bb5 {[%clk
0:00:24.3]} 42. d6 {[%clk 0:00:03]} 42... Rd2 {[%clk 0:00:08.7]} 43. d7 {[%clk
0:00:03.4]} 43... Bxd7 {[%clk 0:00:04.1]} 44. exd7 {[%clk 0:00:04.3]} 44... Rxd7
{[%clk 0:00:04.1]} 45. Rxa2 {[%clk 0:00:04.4]} 45... Rh7 {[%clk 0:00:04.2]} 46.
Kg3 {[%clk 0:00:03.4]} 46... Kf7 {[%clk 0:00:01.2]} 47. Rh2 {[%clk 0:00:02.8]}
47... Kg6 {[%clk 0:00:02.1]} 48. f4 {[%clk 0:00:01.9]} 48... Kf5 {[%clk
0:00:02.2]} 49. Rxh3 {[%clk 0:00:02.6]} 49... Rb7 {[%clk 0:00:02.8]} 50. Rh8
{[%clk 0:00:02.4]} 50... Rb1 {[%clk 0:00:03.3]} 51. Kh4 {[%clk 0:00:03.1]} 51...
Rh1+ {[%clk 0:00:02.8]} 52. Kg3 {[%clk 0:00:03.7]} 52... Rxh8 {[%clk 0:00:03.7]}
53. Kf3 {[%clk 0:00:02.8]} 53... Rc8 {[%clk 0:00:04.6]} 54. Ke3 {[%clk
0:00:02.2]} 54... a5 {[%clk 0:00:05.5]} 55. Kd4 {[%clk 0:00:03.1]} 55... a4
{[%clk 0:00:06.2]} 56. Be7 {[%clk 0:00:03]} 56... Rc1 {[%clk 0:00:06.2]} 57. Kd3
{[%clk 0:00:03]} 57... Rc8 {[%clk 0:00:06.2]} 58. Bb4 {[%clk 0:00:02.3]} 58...
Ke6 {[%clk 0:00:06.5]} 59. Kd4 {[%clk 0:00:01.5]} 59... Kf5 {[%clk 0:00:06.8]}
60. Kd3 {[%clk 0:00:01.6]} 60... Kxf4 {[%clk 0:00:07]} 61. Bd6+ {[%clk
0:00:01.7]} 61... Kf5 {[%clk 0:00:07.6]} 62. Bb4 {[%clk 0:00:02.6]} 62... Ke6
{[%clk 0:00:08.1]} 63. Bc3 {[%clk 0:00:03.2]} 63... Kd5 {[%clk 0:00:08.7]} 64.
Kc2 {[%clk 0:00:03.6]} 64... Kc4 {[%clk 0:00:08.9]} 65. Bb2 {[%clk 0:00:02.3]}
65... Kb4+ {[%clk 0:00:08.7]} 66. Kb1 {[%clk 0:00:01.6]} 66... Kb3 {[%clk
0:00:09.2]} 67. Bc1 {[%clk 0:00:01.7]} 67... Rg8 {[%clk 0:00:09.4]} 68. Be3
{[%clk 0:00:01.8]} 68... Rg3 {[%clk 0:00:09.7]} 69. Bb6 {[%clk 0:00:01.8]} 69...
Rf3 {[%clk 0:00:09.8]} 70. Kc1 {[%clk 0:00:02]} 70... Rf1+ {[%clk 0:00:10.5]}
71. Kd2 {[%clk 0:00:02.2]} 71... a3 {[%clk 0:00:11.1]} 72. Ke2 {[%clk 0:00:03]}
72... Rb1 {[%clk 0:00:11]} 0-1

[Event "Late-Titled-Tuesday-Blitz-January-23-2024"]
[Site "Chess.com"]
[Date "2024.01.23"]
[Round "6"]
[White "sergoy"]
[Black "Polish_fighter3000"]
[Result "0-1"]
[WhiteElo "3028"]
[BlackElo "3100"]
[TimeControl "180+1"]
[EndTime "15:06:31 PST"]
[Termination "Polish_fighter3000 won by resignation"]

1. d4 {[%clk 0:03:00.9]} 1... d6 {[%clk 0:03:00.9]} 2. e4 {[%clk 0:03:00.1]}
2... Nf6 {[%clk 0:03:00.4]} 3. Nc3 {[%clk 0:03:00.8]} 3... g6 {[%clk 0:03:01]}
4. f4 {[%clk 0:03:01.5]} 4... Bg7 {[%clk 0:02:59.7]} 5. Nf3 {[%clk 0:03:02.1]}
5... c5 {[%clk 0:02:59.5]} 6. Bb5+ {[%clk 0:02:59.2]} 6... Bd7 {[%clk
0:02:57.1]} 7. e5 {[%clk 0:02:59.7]} 7... Ng4 {[%clk 0:02:55.3]} 8. e6 {[%clk
0:02:57.2]} 8... Bxb5 {[%clk 0:02:40]} 9. exf7+ {[%clk 0:02:57.6]} 9... Kf8
{[%clk 0:02:40.5]} 10. Nxb5 {[%clk 0:02:55.7]} 10... Qa5+ {[%clk 0:02:39.3]} 11.
Nc3 {[%clk 0:02:56]} 11... cxd4 {[%clk 0:02:36.5]} 12. Nxd4 {[%clk 0:02:54.5]}
12... Nc6 {[%clk 0:02:34.6]} 13. Ne6+ {[%clk 0:02:52.4]} 13... Kxf7 {[%clk
0:02:30.9]} 14. Nxg7 {[%clk 0:02:53.1]} 14... Nf6 {[%clk 0:02:28.8]} 15. Be3
{[%clk 0:02:36.2]} 15... Kxg7 {[%clk 0:02:26.9]} 16. O-O {[%clk 0:02:36.9]}
16... Rhf8 {[%clk 0:02:25.1]} 17. Qd3 {[%clk 0:02:25.8]} 17... Qf5 {[%clk
0:02:22.3]} 18. Qxf5 {[%clk 0:02:25.8]} 18... gxf5 {[%clk 0:02:23.2]} 19. Rfe1
{[%clk 0:02:26.3]} 19... Kf7 {[%clk 0:02:19.9]} 20. Bf2 {[%clk 0:02:18.2]} 20...
Nh5 {[%clk 0:01:55.5]} 21. g3 {[%clk 0:01:59.2]} 21... Nf6 {[%clk 0:01:52.8]}
22. Re2 {[%clk 0:01:57.6]} 22... Rac8 {[%clk 0:01:48.8]} 23. Rae1 {[%clk
0:01:57.5]} 23... a6 {[%clk 0:01:46.9]} 24. Kg2 {[%clk 0:01:42.1]} 24... b5
{[%clk 0:01:36.5]} 25. a3 {[%clk 0:01:42.3]} 25... h5 {[%clk 0:01:26.8]} 26. Kf3
{[%clk 0:01:33.7]} 26... Rfe8 {[%clk 0:01:24.1]} 27. Kg2 {[%clk 0:01:32]} 27...
e6 {[%clk 0:01:16.2]} 28. h3 {[%clk 0:01:19.8]} 28... Rc7 {[%clk 0:00:30]} 29.
Bb6 {[%clk 0:01:02.7]} 29... Rb7 {[%clk 0:00:29]} 30. Bf2 {[%clk 0:01:01.9]}
30... Rbe7 {[%clk 0:00:28.4]} 31. Rd2 {[%clk 0:00:55.2]} 31... d5 {[%clk
0:00:26.3]} 32. Rde2 {[%clk 0:00:55.7]} 32... Rg8 {[%clk 0:00:26.2]} 33. Kf3
{[%clk 0:00:53.7]} 33... Ne4 {[%clk 0:00:24.6]} 34. Nxe4 {[%clk 0:00:52.1]}
34... fxe4+ {[%clk 0:00:25.5]} 35. Ke3 {[%clk 0:00:50.7]} 35... Rc7 {[%clk
0:00:15.8]} 36. Rg1 {[%clk 0:00:38.8]} 36... Na5 {[%clk 0:00:15.5]} 37. b3
{[%clk 0:00:38.1]} 37... Rc3+ {[%clk 0:00:15.3]} 38. Kd4 {[%clk 0:00:38.7]}
38... Rf3 {[%clk 0:00:14]} 39. Be1 {[%clk 0:00:38.3]} 39... Nc6+ {[%clk
0:00:10.5]} 40. Kc5 {[%clk 0:00:38.5]} 40... Ne7 {[%clk 0:00:10.8]} 41. Kb6
{[%clk 0:00:38]} 41... e3 {[%clk 0:00:09]} 42. g4 {[%clk 0:00:35.6]} 42... d4
{[%clk 0:00:08.4]} 43. Kc5 {[%clk 0:00:34.2]} 43... Rxf4 {[%clk 0:00:08.6]} 44.
Bg3 {[%clk 0:00:31]} 44... Rf3 {[%clk 0:00:08]} 45. Kxd4 {[%clk 0:00:25.1]}
45... hxg4 {[%clk 0:00:08.6]} 46. Ke4 {[%clk 0:00:25.7]} 46... Nf5 {[%clk
0:00:06.2]} 47. Be5 {[%clk 0:00:26.1]} 47... Rxh3 {[%clk 0:00:05.5]} 48. Rd1
{[%clk 0:00:24.7]} 48... g3 {[%clk 0:00:04.2]} 49. Rd7+ {[%clk 0:00:23.8]} 49...
Kg6 {[%clk 0:00:04.6]} 50. Ra7 {[%clk 0:00:20.5]} 50... Kg5 {[%clk 0:00:03]} 51.
Rxa6 {[%clk 0:00:20.8]} 51... Rh4+ {[%clk 0:00:01.9]} 52. Kd3 {[%clk 0:00:20]}
52... Kg4 {[%clk 0:00:01.6]} 53. Rxe6 {[%clk 0:00:19.9]} 53... Kf3 {[%clk
0:00:02.3]} 54. Bf6 {[%clk 0:00:12.9]} 54... Rf4 {[%clk 0:00:01.3]} 55. a4
{[%clk 0:00:11.8]} 55... g2 {[%clk 0:00:01.6]} 56. Rxg2 {[%clk 0:00:07.3]} 56...
Rxg2 {[%clk 0:00:01.2]} 57. axb5 {[%clk 0:00:07.9]} 57... Rd2+ {[%clk
0:00:01.3]} 58. Kc3 {[%clk 0:00:08.4]} 58... Rd5 {[%clk 0:00:01.5]} 59. b6
{[%clk 0:00:08.3]} 59... e2 {[%clk 0:00:02.1]} 60. b7 {[%clk 0:00:04.2]} 60...
Rb5 {[%clk 0:00:02.3]} 61. Be5 {[%clk 0:00:03.1]} 61... Re4 {[%clk 0:00:01.8]}
62. Rf6 {[%clk 0:00:02.1]} 62... Rexe5 {[%clk 0:00:02]} 63. b8=Q {[%clk
0:00:01.8]} 63... Rxb8 {[%clk 0:00:02.1]} 64. Rxf5+ {[%clk 0:00:01.9]} 64...
Rxf5 {[%clk 0:00:02.2]} 65. Kd2 {[%clk 0:00:02.8]} 65... Re5 {[%clk 0:00:02.9]}
66. Kd3 {[%clk 0:00:03.7]} 66... Rd8+ {[%clk 0:00:03.4]} 67. Kc4 {[%clk
0:00:04.6]} 67... e1=Q {[%clk 0:00:04]} 0-1

[Event "Late-Titled-Tuesday-Blitz-January-23-2024"]
[Site "Chess.com"]
[Date "2024.01.23"]
[Round "6"]
[White "Dedic8"]
[Black "Angry_Twin"]
[Result "1-0"]
[WhiteElo "2820"]
[BlackElo "2982"]
[TimeControl "180+1"]
[EndTime "15:06:49 PST"]
[Termination "Dedic8 won by resignation"]

1. d4 {[%clk 0:03:00.9]} 1... Nf6 {[%clk 0:03:00]} 2. c4 {[%clk 0:03:01.4]} 2...
e6 {[%clk 0:03:00.7]} 3. Nc3 {[%clk 0:03:02]} 3... d5 {[%clk 0:03:01.1]} 4. cxd5
{[%clk 0:03:01.8]} 4... exd5 {[%clk 0:03:01.7]} 5. Bg5 {[%clk 0:03:02.6]} 5...
c6 {[%clk 0:03:00.4]} 6. e3 {[%clk 0:03:02.6]} 6... h6 {[%clk 0:03:00.3]} 7. Bh4
{[%clk 0:03:02.4]} 7... Be7 {[%clk 0:02:59.6]} 8. Bd3 {[%clk 0:03:02.3]} 8...
O-O {[%clk 0:02:59.5]} 9. Nge2 {[%clk 0:03:02.8]} 9... Re8 {[%clk 0:02:58.9]}
10. f3 {[%clk 0:03:02.4]} 10... c5 {[%clk 0:02:55.3]} 11. O-O {[%clk 0:03:00.2]}
11... Nc6 {[%clk 0:02:54.9]} 12. Rc1 {[%clk 0:02:52.2]} 12... Be6 {[%clk
0:02:46.2]} 13. Kh1 {[%clk 0:02:49.1]} 13... Nd7 {[%clk 0:02:26.7]} 14. Bxe7
{[%clk 0:02:28.8]} 14... Qxe7 {[%clk 0:02:27.6]} 15. Nf4 {[%clk 0:02:28.4]}
15... cxd4 {[%clk 0:02:24.7]} 16. Ncxd5 {[%clk 0:02:20.1]} 16... Qd6 {[%clk
0:02:12.5]} 17. Nxe6 {[%clk 0:02:02.2]} 17... fxe6 {[%clk 0:02:04.7]} 18. Nc3
{[%clk 0:01:53.8]} 18... Nde5 {[%clk 0:01:56.5]} 19. Nb5 {[%clk 0:01:48.3]}
19... Qd8 {[%clk 0:01:50.3]} 20. Nxd4 {[%clk 0:01:43.3]} 20... Nxd4 {[%clk
0:01:41.3]} 21. exd4 {[%clk 0:01:44.2]} 21... Nc6 {[%clk 0:01:41.7]} 22. Bb5
{[%clk 0:01:10.3]} 22... Rc8 {[%clk 0:01:41.4]} 23. Bxc6 {[%clk 0:01:10.8]}
23... Rxc6 {[%clk 0:01:40.4]} 24. Rxc6 {[%clk 0:01:05.8]} 24... bxc6 {[%clk
0:01:41.3]} 25. Qc2 {[%clk 0:01:03.4]} 25... Qxd4 {[%clk 0:01:24.3]} 26. Qxc6
{[%clk 0:01:02.5]} 26... Re7 {[%clk 0:01:24.8]} 27. Qc2 {[%clk 0:00:51.4]} 27...
Rd7 {[%clk 0:01:12.6]} 28. Qe2 {[%clk 0:00:51]} 28... Kf7 {[%clk 0:01:12.1]} 29.
Re1 {[%clk 0:00:50.4]} 29... Rd6 {[%clk 0:01:11.8]} 30. h3 {[%clk 0:00:49.9]}
30... a5 {[%clk 0:00:46.5]} 31. Qc2 {[%clk 0:00:38.5]} 31... Kf6 {[%clk
0:00:35.5]} 32. b3 {[%clk 0:00:36.4]} 32... Rd5 {[%clk 0:00:32.1]} 33. Re4
{[%clk 0:00:27]} 33... Qd1+ {[%clk 0:00:19.9]} 34. Qxd1 {[%clk 0:00:27.1]} 34...
Rxd1+ {[%clk 0:00:20.4]} 35. Kh2 {[%clk 0:00:27.9]} 35... Rd2 {[%clk 0:00:21]}
36. Ra4 {[%clk 0:00:27.7]} 36... Rd5 {[%clk 0:00:21.7]} 37. h4 {[%clk
0:00:28.2]} 37... h5 {[%clk 0:00:21.8]} 38. Kg3 {[%clk 0:00:27.5]} 38... g5
{[%clk 0:00:22.3]} 39. hxg5+ {[%clk 0:00:27]} 39... Kxg5 {[%clk 0:00:23.2]} 40.
Re4 {[%clk 0:00:27]} 40... Kf5 {[%clk 0:00:21.4]} 41. Rh4 {[%clk 0:00:26.1]}
41... Kg6 {[%clk 0:00:20.5]} 42. Ra4 {[%clk 0:00:25.1]} 42... Kf5 {[%clk
0:00:20.1]} 43. Kf2 {[%clk 0:00:25.4]} 43... Rd2+ {[%clk 0:00:20.3]} 44. Kf1
{[%clk 0:00:25.9]} 44... Rd5 {[%clk 0:00:19.4]} 45. Ke2 {[%clk 0:00:26.3]} 45...
Kg5 {[%clk 0:00:17.3]} 46. Ke3 {[%clk 0:00:26.6]} 46... Rc5 {[%clk 0:00:14.1]}
47. Rc4 {[%clk 0:00:26]} 47... Rd5 {[%clk 0:00:12.7]} 48. a3 {[%clk 0:00:17.9]}
48... Kg6 {[%clk 0:00:11.6]} 49. b4 {[%clk 0:00:17.9]} 49... axb4 {[%clk
0:00:12.2]} 50. axb4 {[%clk 0:00:18.8]} 50... Rd1 {[%clk 0:00:12.8]} 51. Ke4
{[%clk 0:00:06.2]} 51... Kf6 {[%clk 0:00:12.3]} 52. Kf4 {[%clk 0:00:05.9]} 52...
Rb1 {[%clk 0:00:08.2]} 53. Kg3 {[%clk 0:00:06.2]} 53... Rb2 {[%clk 0:00:08.9]}
54. Kh3 {[%clk 0:00:06]} 54... Kg6 {[%clk 0:00:07.6]} 55. Re4 {[%clk 0:00:06.7]}
55... Kf6 {[%clk 0:00:07.7]} 56. g3 {[%clk 0:00:06.2]} 56... Rb3 {[%clk
0:00:07.3]} 57. f4 {[%clk 0:00:06.8]} 57... Rb1 {[%clk 0:00:04.3]} 58. Rc4
{[%clk 0:00:07.1]} 58... Kg6 {[%clk 0:00:03.3]} 59. Kg2 {[%clk 0:00:07.6]} 59...
Kf5 {[%clk 0:00:03.3]} 60. Rc5+ {[%clk 0:00:07.7]} 60... Kf6 {[%clk 0:00:03.3]}
61. b5 {[%clk 0:00:07.6]} 61... Rb2+ {[%clk 0:00:03.7]} 62. Kh3 {[%clk
0:00:06.8]} 62... Kg6 {[%clk 0:00:03.9]} 63. Rg5+ {[%clk 0:00:07.2]} 63... Kh6
{[%clk 0:00:04.2]} 64. Re5 {[%clk 0:00:07.9]} 64... Kg7 {[%clk 0:00:02.1]} 65.
Rxh5 {[%clk 0:00:06.8]} 65... Kf6 {[%clk 0:00:02.3]} 66. Re5 {[%clk 0:00:07.1]}
66... Rb1 {[%clk 0:00:02.8]} 67. Kg4 {[%clk 0:00:07.3]} 67... Rb2 {[%clk
0:00:03.4]} 68. Rg5 {[%clk 0:00:07.7]} 68... Rb3 {[%clk 0:00:03.5]} 69. Kh3
{[%clk 0:00:08]} 69... Rb1 {[%clk 0:00:03.8]} 70. Kg2 {[%clk 0:00:08.1]} 70...
Rb2+ {[%clk 0:00:04.1]} 71. Kf3 {[%clk 0:00:08.2]} 71... Rb3+ {[%clk 0:00:05]}
72. Ke4 {[%clk 0:00:08.8]} 72... Rb4+ {[%clk 0:00:05.2]} 73. Kd3 {[%clk
0:00:09.2]} 73... Rb1 {[%clk 0:00:05.6]} 74. Kc4 {[%clk 0:00:09.6]} 74... Ke7
{[%clk 0:00:02.5]} 75. Kc5 {[%clk 0:00:10]} 75... Kf6 {[%clk 0:00:01.8]} 76. Kc6
{[%clk 0:00:10.1]} 76... Rc1+ {[%clk 0:00:02.2]} 77. Rc5 {[%clk 0:00:10.4]}
77... Rg1 {[%clk 0:00:02.6]} 78. b6 {[%clk 0:00:11]} 78... Rxg3 {[%clk
0:00:02.8]} 79. b7 {[%clk 0:00:11.7]} 79... Rb3 {[%clk 0:00:03.4]} 80. Rb5
{[%clk 0:00:11.9]} 80... Rc3+ {[%clk 0:00:04]} 81. Kb6 {[%clk 0:00:12.5]} 1-0